fUSD/lending_fUSD_20250219
["ID","MTS","AMOUNT","RATE_DAILY","PERIOD"]
[353686183,1739989843489,-500.0,0.00011119,2]
[353686185,1739989843499,-500.0,0.00011119,2]
[353686187,1739989843508,-500.0,0.00011119,2]
[353686189,1739989843518,-500.0,0.00011119,2]
[353686191,1739989843528,-500.0,0.00011119,2]
[353686193,1739989843538,-500.0,0.00011119,2]
[353686195,1739989843547,-500.0,0.00011119,2]
[353686197,1739989843557,-500.0,0.00011119,2]
[353686199,1739989843568,-500.0,0.00011119,2]
[353686201,1739989843578,-500.0,0.00011119,2]
[353686203,1739989843587,-507.11867569,0.00011119,2]
[353686205,1739989843596,-500.0,0.00011119,2]
[353686207,1739989843606,-500.0,0.00011119,2]
[353686209,1739989843616,-500.0,0.00011119,2]
[353686211,1739989843628,-500.0,0.00011119,2]
[353686213,1739989843639,-500.0,0.00011119,2]
[353686215,1739989843649,-500.0,0.00011119,2]
[353686217,1739989843659,-500.0,0.00011119,2]
[353686219,1739989843668,-666.2,0.00011119,2]
[353686221,1739989843678,-500.0,0.00011119,2]
[353686223,1739989843687,-500.0,0.00011119,2]
[353686225,1739989843697,-501.07216961,0.00011119,2]
[353686226,1739989843707,-500.0,0.00011119,2]
[353686228,1739989843716,-500.0,0.00011119,2]
[353686230,1739989843725,-575.69,0.00011119,2]
[353686232,1739989843734,-500.0,0.00011119,2]
[353686234,1739989843744,-500.0,0.00011119,2]
[353686236,1739989843754,-783.98,0.00011119,2]
[353686238,1739989843763,-500.0,0.00011119,2]
[353686240,1739989843772,-500.0,0.00011119,2]
[353686242,1739989843782,-500.0,0.00011119,2]
[353686244,1739989843792,-509.15875029,0.00011119,2]
[353686246,1739989843801,-500.0,0.00011119,2]
[353686248,1739989843811,-500.0,0.00011119,2]
[353686250,1739989843820,-534.30555416,0.00011119,2]
[353686252,1739989843829,-500.0,0.00011119,2]
[353686254,1739989843839,-500.0,0.00011119,2]
[353686256,1739989843848,-500.0,0.00011119,2]
[353686258,1739989843857,-500.0,0.00011119,2]
[353686260,1739989843868,-500.0,0.00011119,2]
[353686262,1739989843877,-500.0,0.00011119,2]
[353686264,1739989843887,-500.0,0.00011119,2]
[353686266,1739989843897,-500.0,0.00011119,2]
[353686268,1739989843907,-500.0,0.00011119,2]
[353686270,1739989843917,-500.0,0.00011119,2]
[353686272,1739989843927,-500.0,0.00011119,2]
[353686274,1739989843937,-583.97,0.00011119,2]
[353686276,1739989843947,-500.0,0.00011119,2]
[353686278,1739989843957,-500.0,0.00011119,2]
[353686280,1739989843966,-500.0,0.00011119,2]
[353686282,1739989843975,-500.0,0.00011119,2]
[353686284,1739989843985,-500.0,0.00011119,2]
[353686286,1739989843994,-500.0,0.00011119,2]
[353686288,1739989844003,-500.0,0.00011119,2]
[353686290,1739989844013,-500.0,0.00011119,2]
[353686292,1739989844023,-500.0,0.00011119,2]
[353686294,1739989844032,-500.0,0.00011119,2]
[353686296,1739989844041,-500.0,0.00011119,2]
[353686298,1739989844051,-500.0,0.00011119,2]
[353686300,1739989844065,-500.0,0.00011119,2]
[353686302,1739989844075,-500.0,0.00011119,2]
[353686304,1739989844085,-500.0,0.00011119,2]
[353686306,1739989844094,-539.14,0.00011119,2]
[353686308,1739989844106,-500.0,0.00011119,2]
[353686310,1739989844117,-500.0,0.00011119,2]
[353686312,1739989844126,-500.0,0.00011119,2]
[353686314,1739989844136,-781.14,0.00011119,2]
[353686316,1739989844146,-500.0,0.00011119,2]
[353686318,1739989844155,-500.0,0.00011119,2]
[353686320,1739989844164,-500.0,0.00011119,2]
[353686322,1739989844174,-500.0,0.00011119,2]
[353686324,1739989844184,-500.0,0.00011119,2]
[353686326,1739989844193,-501.19148623,0.00011119,2]
[353686328,1739989844202,-500.0,0.00011119,2]
[353686330,1739989844211,-500.0,0.00011119,2]
[353686332,1739989844221,-500.0,0.00011119,2]
[353686334,1739989844231,-408.48136347,0.00011119,2]
[353686336,1739989844240,-523.56595865,0.00011119,2]
[353686338,1739989844249,-548.79,0.00011119,2]
[353686340,1739989844258,-500.0,0.00011119,2]
[353686342,1739989844268,-500.0,0.00011119,2]
[353686344,1739989844277,-500.0,0.00011119,2]
[353686346,1739989844286,-503.54,0.00011119,2]
[353686348,1739989844295,-500.0,0.00011119,2]
[353686350,1739989844305,-500.0,0.00011119,2]
[353686352,1739989844314,-500.0,0.00011119,2]
[353686354,1739989844324,-500.0,0.00011119,2]
[353686356,1739989844334,-500.0,0.00011119,2]
[353686358,1739989844343,-500.0,0.00011119,2]
[353686360,1739989844352,-500.0,0.00011119,2]
[353686362,1739989844362,-500.0,0.00011119,2]
[353686364,1739989844373,-500.0,0.00011119,2]
[353686366,1739989844383,-500.0,0.00011119,2]
[353686368,1739989844392,-500.0,0.00011119,2]
[353686370,1739989844402,-500.0,0.00011119,2]
[353686372,1739989844411,-761.76,0.00011119,2]
[353686374,1739989844420,-500.0,0.00011119,2]
[353686376,1739989844429,-500.0,0.00011119,2]
[353686378,1739989844439,-500.0,0.00011119,2]
[353686380,1739989844448,-500.0,0.00011119,2]
[353686382,1739989844457,-500.0,0.00011119,2]
[353686384,1739989844466,-500.0,0.00011119,2]
[353686386,1739989844475,-1081.32,0.00011119,2]
[353686388,1739989844485,-627.5508868,0.00011119,2]
[353686390,1739989844494,-500.0,0.00011119,2]
[353686392,1739989844504,-500.0,0.00011119,2]
[353686394,1739989844513,-500.0,0.00011119,2]
[353686396,1739989844522,-500.0,0.00011119,2]
[353686398,1739989844532,-509.01,0.00011119,2]
[353686399,1739989844542,-2557.05,0.00011119,2]
[353686400,1739989844551,-500.0,0.00011119,2]
[353686401,1739989844561,-500.0,0.00011119,2]
[353686402,1739989844571,-500.0,0.00011119,2]
[353686403,1739989844580,-500.0,0.00011119,2]
[353686404,1739989844590,-500.0,0.00011119,2]
[353686405,1739989844600,-500.0,0.00011119,2]
[353686406,1739989844610,-500.0,0.00011119,2]
[353686408,1739989844623,-500.0,0.00011119,2]
[353686409,1739989844632,-792.72,0.00011119,2]
[353686410,1739989844642,-500.0,0.00011119,2]
[353686411,1739989844651,-690.28,0.00011119,2]
[353686412,1739989844660,-500.0,0.00011119,2]
[353686413,1739989844669,-500.0,0.00011119,2]
[353686414,1739989844679,-500.0,0.00011119,2]
[353686415,1739989844688,-500.0,0.00011119,2]
[353686416,1739989844697,-500.0,0.00011119,2]
[353686417,1739989844706,-500.0,0.00011119,2]
[353686419,1739989844715,-500.0,0.00011119,2]
[353686421,1739989844725,-502.50507815,0.00011119,2]
[353686423,1739989844734,-500.0,0.00011119,2]
[353686425,1739989844743,-500.0,0.00011119,2]
[353686427,1739989844753,-813.28,0.00011119,2]
[353686428,1739989844763,-572.54,0.00011119,2]
[353686429,1739989844773,-500.0,0.00011119,2]
[353686430,1739989844782,-500.0,0.00011119,2]
[353686431,1739989844792,-926.62,0.00011119,2]
[353686432,1739989844802,-500.0,0.00011119,2]
[353686433,1739989844811,-500.0,0.00011119,2]
[353686434,1739989844821,-500.0,0.00011119,2]
[353686435,1739989844830,-500.0,0.00011119,2]
[353686437,1739989844840,-500.0,0.00011119,2]
[353686439,1739989844849,-500.0,0.00011119,2]
[353686441,1739989844859,-500.0,0.00011119,2]
[353686444,1739989844870,-500.0,0.00011119,2]
[353686446,1739989844879,-500.0,0.00011119,2]
[353686448,1739989844889,-500.0,0.00011119,2]
[353686450,1739989844899,-974.85,0.00011119,2]
[353686451,1739989844908,-662.01,0.00011119,2]
[353686454,1739989844917,-500.0,0.00011119,2]
[353686476,1739989845099,-1002.15,0.00011119,2]
[353686479,1739989845138,-500.0,0.00011119,2]
[353686482,1739989845148,-500.0,0.00011119,2]
[353686484,1739989845157,-500.0,0.00011119,2]
[353686486,1739989845167,-500.0,0.00011119,2]
[353686488,1739989845176,-1000.0,0.00011119,2]
[353686491,1739989845186,-500.0,0.00011119,2]
[353686494,1739989845195,-1019.87,0.00011119,2]
[353686496,1739989845205,-500.0,0.00011119,2]
[353686499,1739989845214,-500.0,0.00011119,2]
[353686502,1739989845223,-628.62,0.00011119,2]
[353686504,1739989845233,-500.0,0.00011119,2]
[353686506,1739989845242,-611.16779421,0.00011119,2]
[353686509,1739989845252,-500.0,0.00011119,2]
[353686511,1739989845261,-968.81,0.00011119,2]
[353686513,1739989845271,-593.03,0.00011119,2]
[353686515,1739989845280,-500.0,0.00011119,2]
[353686517,1739989845289,-500.0,0.00011119,2]
[353686519,1739989845299,-500.51325432,0.00011119,2]
[353686521,1739989845308,-500.0,0.00011119,2]
[353686523,1739989845317,-500.0,0.00011119,2]
[353686525,1739989845326,-500.0,0.00011119,2]
[353686528,1739989845335,-500.0,0.00011119,2]
[353686529,1739989845344,-500.0,0.00011119,2]
[353686530,1739989845354,-755.96,0.00011119,2]
[353686531,1739989845364,-500.0,0.00011119,2]
[353686532,1739989845374,-500.0,0.00011119,2]
[353686533,1739989845384,-500.0,0.00011119,2]
[353686534,1739989845394,-500.0,0.00011119,2]
[353686535,1739989845403,-500.0,0.00011119,2]
[353686536,1739989845413,-776.51,0.00011119,2]
[353686537,1739989845423,-316.63078391,0.00011119,2]
[353686539,1739989845432,-505.66101073,0.00011119,2]
[353686541,1739989845442,-500.0,0.00011119,2]
[353686543,1739989845451,-1031.0,0.00011119,2]
[353686545,1739989845461,-500.0,0.00011119,2]
[353686547,1739989845470,-101.07492839,0.00011119,2]
[353686551,1739989845496,-398.92507161,0.00011119,2]
[353686553,1739989845505,-249.11139155,0.00011119,2]
[353686554,1739989845515,-500.33690449,0.00011119,2]
[353686557,1739989845525,-500.0,0.00011119,2]
[353686559,1739989845535,-500.0,0.00011119,2]
[353686561,1739989845544,-856.0129192,0.00011119,2]
[353686563,1739989845556,-356.6070808,0.00011119,2]
[353686565,1739989845565,-143.3929192,0.00011119,2]
[353686567,1739989845577,-356.6070808,0.00011119,2]
[353686569,1739989845586,-404.84500498,0.00011119,2]
[353686571,1739989845597,-95.15499502,0.00011119,2]
[353686573,1739989845606,-500.0,0.00011119,2]
[353686575,1739989845617,-500.0,0.00011119,2]
[353686577,1739989845626,-89.06646127,0.00011119,2]
[353686579,1739989845642,-410.93353873,0.00011119,2]
[353686582,1739989845652,-500.0,0.00011119,2]
[353686583,1739989845662,-500.0,0.00011119,2]
[353686585,1739989845672,-300.0,0.00011119,2]
[353686587,1739989845682,-139.99758837,0.00011119,2]
[353686590,1739989845695,-274.18465584,0.00011119,2]
[353686592,1739989845705,-500.0,0.00011119,2]
[353686594,1739989845716,-380.81534416,0.00011119,2]
[353686669,1739989846444,-500.0,0.00011038,2]
[353686671,1739989846455,-119.18465584,0.00011119,2]
[353686673,1739989846464,-500.0,0.00011119,2]
[353686675,1739989846473,-209.46871488,0.00011119,2]
[353686686,1739989846599,-290.53128512,0.00011119,2]
[353686687,1739989846609,-500.0,0.00011119,2]
[353686688,1739989846619,-500.0,0.00011119,2]
[353686689,1739989846628,-500.0,0.00011119,2]
[353686690,1739989846642,-500.0,0.00011119,2]
[353686691,1739989846652,-500.0,0.0001112,2]
[353686692,1739989846661,-500.0,0.0001112,2]
[353686693,1739989846670,-544.38,0.0001112,2]
[353686694,1739989846679,-500.0,0.0001112,2]
[353686695,1739989846689,-500.0,0.0001112,2]
[353686696,1739989846698,-500.0,0.0001112,2]
[353686698,1739989846708,-689.05,0.0001112,2]
[353686700,1739989846718,-94.85095934,0.0001112,2]
[353686701,1739989846729,-894.66904066,0.0001112,2]
[353686702,1739989846739,-633.04,0.0001112,2]
[353686703,1739989846748,-500.0,0.0001112,2]
[353686704,1739989846757,-500.0,0.0001112,2]
[353686705,1739989846767,-661.38,0.0001112,2]
[353686706,1739989846776,-500.0,0.0001112,2]
[353686707,1739989846787,-15.35673828,0.0001112,2]
[353686708,1739989846799,-339.0713519,0.0001112,2]
[353686709,1739989846811,-145.57190982,0.0001112,2]
[353686710,1739989846820,-500.0,0.0001112,2]
[353686711,1739989846830,-877.27,0.0001112,2]
[353686712,1739989846839,-500.0,0.0001112,2]
[353686713,1739989846850,-863.8,0.0001112,2]
[353686714,1739989846862,-500.0,0.0001112,2]
[353686715,1739989846873,-628.42,0.0001112,2]
[353686716,1739989846882,-500.0,0.0001112,2]
[353686717,1739989846891,-667.79,0.0001112,2]
[353686718,1739989846901,-500.0,0.0001112,2]
[353686719,1739989846910,-670.89,0.0001112,2]
[353686720,1739989846920,-500.0,0.0001112,2]
[353686721,1739989846929,-720.83,0.0001112,2]
[353686722,1739989846939,-915.95,0.0001112,2]
[353686723,1739989846948,-500.0,0.0001112,2]
[353686724,1739989846958,-500.0,0.0001112,2]
[353686725,1739989846968,-134.7328689,0.0001112,2]
[353686726,1739989847576,-327.09141689,0.00011019,2]
[353686727,1739989847586,-500.0,0.00011037,2]
[353686728,1739989847595,-500.0,0.00011038,2]
[353686729,1739989847604,-500.0,0.00011038,2]
[353686730,1739989847613,-735.84,0.00011038,2]
[353686731,1739989847625,-500.0,0.00011119,2]
[353686732,1739989847635,-670.4871311,0.0001112,2]
[353686733,1739989847644,-204.18,0.0001112,2]
[353686734,1739989847653,-681.03,0.0001112,2]
[353686735,1739989847662,-500.0,0.0001112,2]
[353686736,1739989847671,-1058.36,0.0001112,2]
[353686737,1739989847680,-500.0,0.0001112,2]
[353686738,1739989847689,-500.0,0.0001112,2]
[353686739,1739989847698,-632.03,0.0001112,2]
[353686740,1739989847707,-1149.52,0.0001112,2]
[353686741,1739989847716,-607.53,0.0001112,2]
[353686742,1739989847726,-706.67,0.0001112,2]
[353686743,1739989847735,-997.89,0.0001112,2]
[353686744,1739989847744,-691.45,0.0001112,2]
[353686745,1739989847753,-596.24,0.0001112,2]
[353686746,1739989847762,-583.38,0.0001112,2]
[353686747,1739989847771,-862.43,0.0001112,2]
[353686748,1739989847780,-709.91,0.0001112,2]
[353686749,1739989847789,-752.37,0.0001112,2]
[353686750,1739989847798,-500.0,0.0001112,2]
[353686751,1739989847807,-1168.19,0.0001112,2]
[353686752,1739989847816,-500.0,0.0001112,2]
[353686753,1739989847825,-589.86,0.0001112,2]
[353686754,1739989847834,-899.68,0.0001112,2]
[353686755,1739989847844,-500.0,0.0001112,2]
[353686756,1739989847852,-1021.05,0.0001112,2]
[353686757,1739989847861,-500.0,0.0001112,2]
[353686758,1739989847874,-845.44,0.0001112,2]
[353686759,1739989847886,-814.67,0.0001112,2]
[353686760,1739989847895,-601.48,0.0001112,2]
[353686761,1739989847904,-500.0,0.0001112,2]
[353686762,1739989847914,-1000.0,0.0001112,2]
[353686763,1739989847923,-1000.0,0.0001112,2]
[353686764,1739989847932,-1000.0,0.0001112,2]
[353686765,1739989847941,-196.60539,0.0001112,2]
[353686766,1739989847950,-549.83,0.0001112,2]
[353686767,1739989847959,-1112.23,0.0001112,2]
[353686768,1739989847969,-500.0,0.0001112,2]
[353686769,1739989847979,-951.57,0.0001112,2]
[353686770,1739989847988,-244.353427,0.0001112,2]
[353686771,1739989847997,-1345.91,0.0001112,2]
[353686772,1739989848007,-779.36,0.0001112,2]
[353686773,1739989848016,-882.9,0.0001112,2]
[353686774,1739989848025,-1010.48,0.0001112,2]
[353686775,1739989848035,-542.91,0.0001112,2]
[353686776,1739989848045,-500.0,0.0001112,2]
[353686777,1739989848057,-689.3,0.0001112,2]
[353686778,1739989848067,-1181.77,0.0001112,2]
[353686779,1739989848078,-591.53,0.0001112,2]
[353686780,1739989848087,-614.99,0.0001112,2]
[353686781,1739989848098,-964.16,0.0001112,2]
[353686782,1739989848107,-516.28,0.0001112,2]
[353686783,1739989848120,-500.0,0.0001112,2]
[353686784,1739989848129,-959.6,0.0001112,2]
[353686785,1739989848141,-500.0,0.0001112,2]
[353686786,1739989848151,-500.0,0.0001112,2]
[353686787,1739989848160,-500.0,0.0001112,2]
[353686788,1739989848170,-500.0,0.0001112,2]
[353686789,1739989848179,-727.15,0.0001112,2]
[353686790,1739989848189,-500.0,0.0001112,2]
[353686791,1739989848199,-500.0,0.0001112,2]
[353686792,1739989848209,-500.0,0.0001112,2]
[353686793,1739989848218,-500.0,0.0001112,2]
[353686794,1739989848228,-500.0,0.0001112,2]
[353686795,1739989848237,-500.0,0.0001112,2]
[353686796,1739989848247,-500.0,0.0001112,2]
[353686797,1739989848256,-825.72,0.0001112,2]
[353686798,1739989848265,-561.62,0.0001112,2]
[353686799,1739989848274,-655.06,0.0001112,2]
[353686800,1739989848283,-969.05,0.0001112,2]
[353686801,1739989848293,-1182.78,0.0001112,2]
[353686802,1739989848302,-500.0,0.0001112,2]
[353686803,1739989848312,-638.44,0.0001112,2]
[353686804,1739989848321,-731.18,0.0001112,2]
[353686805,1739989848330,-616.66,0.0001112,2]
[353686806,1739989848341,-500.0,0.0001112,2]
[353686807,1739989848350,-820.16,0.0001112,2]
[353686808,1739989848360,-1091.98,0.0001112,2]
[353686809,1739989848372,-500.0,0.0001112,2]
[353686810,1739989848382,-965.92,0.0001112,2]
[353686811,1739989848391,-500.0,0.0001112,2]
[353686812,1739989848400,-833.44,0.0001112,2]
[353686813,1739989848409,-1080.06,0.0001112,2]
[353686814,1739989848418,-610.68,0.0001112,2]
[353686815,1739989848427,-500.0,0.0001112,2]
[353686816,1739989848437,-728.39,0.0001112,2]
[353686817,1739989848447,-713.27,0.0001112,2]
[353686818,1739989848457,-1017.85,0.0001112,2]
[353686819,1739989848466,-500.0,0.0001112,2]
[353686820,1739989848476,-812.74,0.0001112,2]
[353686821,1739989848485,-500.0,0.0001112,2]
[353686822,1739989848494,-523.21,0.0001112,2]
[353686823,1739989848504,-500.0,0.0001112,2]
[353686824,1739989848515,-607.4,0.0001112,2]
[353686825,1739989848524,-583.25,0.0001112,2]
[353686826,1739989848534,-778.67,0.0001112,2]
[353686827,1739989848544,-500.0,0.0001112,2]
[353686828,1739989848554,-500.0,0.0001112,2]
[353686829,1739989848565,-500.0,0.0001112,2]
[353686830,1739989848574,-659.69,0.0001112,2]
[353686831,1739989848583,-554.47,0.0001112,2]
[353686832,1739989848594,-1330.3,0.0001112,2]
[353686833,1739989848603,-500.0,0.0001112,2]
[353686834,1739989848613,-500.0,0.0001112,2]
[353686835,1739989848623,-500.0,0.0001112,2]
[353686836,1739989848632,-1604.92,0.0001112,2]
[353686837,1739989848641,-838.32,0.0001112,2]
[353686838,1739989848651,-876.1,0.0001112,2]
[353686839,1739989848661,-500.0,0.0001112,2]
[353686840,1739989848671,-1751.32,0.0001112,2]
[353686841,1739989848680,-500.0,0.0001112,2]
[353686842,1739989848690,-639.18,0.0001112,2]
[353686843,1739989848700,-653.29,0.0001112,2]
[353686844,1739989848710,-500.0,0.0001112,2]
[353686845,1739989848719,-522.83,0.0001112,2]
[353686846,1739989848728,-1376.25,0.0001112,2]
[353686847,1739989848738,-551.72,0.0001112,2]
[353686848,1739989848747,-500.0,0.0001112,2]
[353686849,1739989848757,-640.55,0.0001112,2]
[353686850,1739989848767,-1241.36,0.0001112,2]
[353686851,1739989848776,-557.53,0.0001112,2]
[353686852,1739989848786,-555.97,0.0001112,2]
[353686853,1739989848796,-500.0,0.0001112,2]
[353686854,1739989848805,-869.29,0.0001112,2]
[353686855,1739989848816,-500.0,0.0001112,2]
[353686856,1739989848825,-500.0,0.0001112,2]
[353686857,1739989848835,-679.37,0.0001112,2]
[353686858,1739989848845,-942.71,0.0001112,2]
[353686859,1739989848855,-500.0,0.0001112,2]
[353686860,1739989848865,-942.13,0.0001112,2]
[353686861,1739989848875,-1397.07,0.0001112,2]
[353686862,1739989848885,-1259.79,0.0001112,2]
[353686863,1739989848895,-599.17,0.0001112,2]
[353686864,1739989848906,-875.78,0.0001112,2]
[353686865,1739989848915,-500.0,0.0001112,2]
[353686866,1739989848925,-817.96,0.0001112,2]
[353686867,1739989848935,-1182.74,0.0001112,2]
[353686868,1739989848945,-500.0,0.0001112,2]
[353686869,1739989848954,-500.0,0.0001112,2]
[353686870,1739989848964,-914.83,0.0001112,2]
[353686871,1739989848973,-500.0,0.0001112,2]
[353686872,1739989848983,-695.4,0.0001112,2]
[353686873,1739989848992,-749.11,0.0001112,2]
[353686874,1739989849002,-1038.42,0.0001112,2]
[353686875,1739989849012,-753.3,0.0001112,2]
[353686876,1739989849021,-1734.46,0.0001112,2]
[353686877,1739989849032,-664.48,0.0001112,2]
[353686878,1739989849042,-726.41,0.0001112,2]
[353686879,1739989849054,-1231.72,0.0001112,2]
[353686880,1739989849065,-1018.7,0.0001112,2]
[353686881,1739989849074,-500.0,0.0001112,2]
[353686882,1739989849083,-769.87,0.0001112,2]
[353686883,1739989849093,-873.89,0.0001112,2]
[353686884,1739989849103,-818.47,0.0001112,2]
[353686885,1739989849112,-500.0,0.0001112,2]
[353686886,1739989849122,-612.80435912,0.0001112,2]
[353686887,1739989849132,-500.0,0.0001112,2]
[353686888,1739989849141,-573.96,0.0001112,2]
[353686889,1739989849152,-1309.75,0.0001112,2]
[353686890,1739989849161,-500.0,0.0001112,2]
[353686891,1739989849171,-500.0,0.0001112,2]
[353686892,1739989849180,-975.41,0.0001112,2]
[353686893,1739989849189,-1058.01,0.0001112,2]
[353686894,1739989849199,-501.58,0.0001112,2]
[353686895,1739989849209,-500.0,0.0001112,2]
[353686896,1739989849218,-954.76,0.0001112,2]
[353686897,1739989849227,-500.0,0.0001112,2]
[353686898,1739989849237,-500.0,0.0001112,2]
[353686899,1739989849247,-1536.01,0.0001112,2]
[353686900,1739989849256,-500.0,0.0001112,2]
[353686901,1739989849266,-892.25,0.0001112,2]
[353686902,1739989849276,-500.0,0.0001112,2]
[353686903,1739989849286,-764.51949112,0.0001112,2]
[353686904,1739989850552,-448.3426429,0.00010937,2]
[353686905,1739989850562,-509.37,0.00011012,2]
[353686906,1739989850572,-500.0,0.00011037,2]
[353686907,1739989850582,-500.0,0.00011038,2]
[353686908,1739989850591,-500.0,0.00011038,2]
[353686909,1739989850601,-500.0,0.00011038,2]
[353686910,1739989850611,-500.0,0.00011038,2]
[353686911,1739989850622,-500.0,0.00011038,2]
[353686912,1739989850633,-500.0,0.00011119,2]
[353686913,1739989850644,-150.99050888,0.0001112,2]
[353686914,1739989850654,-500.0,0.0001112,2]
[353686915,1739989850664,-994.04,0.0001112,2]
[353686916,1739989850674,-775.03,0.0001112,2]
[353686917,1739989850684,-500.0,0.0001112,2]
[353686918,1739989850694,-1416.98,0.0001112,2]
[353686919,1739989850704,-649.43,0.0001112,2]
[353686920,1739989850714,-1202.88,0.0001112,2]
[353686921,1739989850724,-1327.99,0.0001112,2]
[353686922,1739989850734,-500.0,0.0001112,2]
[353686923,1739989850745,-995.37,0.0001112,2]
[353686924,1739989850755,-500.0,0.0001112,2]
[353686925,1739989850766,-2799.6,0.0001112,2]
[353686926,1739989850776,-553.99,0.0001112,2]
[353686927,1739989850786,-1388.91,0.0001112,2]
[353686928,1739989850796,-500.0,0.0001112,2]
[353686929,1739989850806,-500.0,0.0001112,2]
[353686930,1739989850816,-1104.25,0.0001112,2]
[353686931,1739989850826,-500.0,0.0001112,2]
[353686932,1739989850836,-824.81,0.0001112,2]
[353686933,1739989850846,-500.0,0.0001112,2]
[353686934,1739989850856,-738.94,0.0001112,2]
[353686935,1739989850866,-1131.14,0.0001112,2]
[353686936,1739989850877,-821.38,0.0001112,2]
[353686937,1739989850887,-500.0,0.0001112,2]
[353686938,1739989850897,-604.82,0.0001112,2]
[353686939,1739989850907,-1287.39,0.0001112,2]
[353686940,1739989850916,-488.02630124,0.0001112,2]
[353686942,1739989861771,152.95,8.767e-05,2]
[353686943,1739989875131,151.02,0.00010138,2]
[353686946,1739990064096,1000.0,0.00010209,2]
[353686947,1739990093603,376.03,0.00010194,2]
[353686948,1739990107282,202.0,0.00010194,3]
[353686949,1739990385916,843.83,8.238e-05,2]
[353686950,1739990405673,192.0,0.00010194,3]
[353686951,1739990422066,250.0,0.00010147,2]
[353686952,1739990705788,182.0,0.00010194,3]
[353686953,1739990707017,150.0,0.00010134,2]
[353686954,1739990709791,152.65147296,0.00010134,2]
[353686955,1739990713719,150.0,0.00010134,2]
[353686956,1739990717690,150.0,0.00010134,2]
[353686957,1739990777557,5552.0,0.000103,3]
[353686958,1739990777812,4004.0,0.0001,2]
[353686959,1739990849336,822.88,0.00010123,2]
[353686960,1739990870669,18298.83,0.00010102,2]
[353686961,1739990964403,5552.0,0.000105,5]
[353686962,1739991003557,698.87,0.00010123,2]
[353686963,1739991006379,173.0,0.00010194,3]
[353686976,1739991037546,-843.83,0.00010502,2]
[353686977,1739991037556,-150.0,0.00010697,2]
[353686978,1739991037566,-150.0,0.00010697,2]
[353686979,1739991037576,-212.0071935,0.00010788,2]
[353686980,1739991037709,-36.47455397,0.00010788,2]
[353686981,1739991037719,-173.0,0.00010815,3]
[353686982,1739991037728,-298.89509526,0.00010937,2]
[353686983,1739991037738,-163.05610439,0.00010937,2]
[353686984,1739991037748,-316.93712561,0.00010938,2]
[353686985,1739991037758,-497.2,0.0001099,2]
[353686986,1739991037768,-550.0,0.00011,2]
[353686987,1739991037777,-3068.62512077,0.0001101,2]
[353686988,1739991037796,-931.37487923,0.0001101,2]
[353686989,1739991037806,-2192.16627091,0.0001101,2]
[353687166,1739991039772,-1807.83372909,0.0001101,2]